bitfinex/quotes_SOLUSD_20251116
["timestamp","ask_amount","ask_price","bid_price","bid_amount"]
[1763308822433,0.88,137.69,137.65,8.8912243]
[1763308822599,0.88,137.69,137.66,16.15549859]
[1763308822817,0.88,137.69,137.66,7.26427429]
[1763308823628,0.88,137.69,137.53,1.99999999]
[1763308823629,0.68,137.68,137.53,1.99999999]
[1763308823924,0.68,137.68,137.6,8.8912243]
[1763308823925,23.3312,137.68,137.6,8.8912243]
[1763308824089,8.8912243,137.65,137.6,8.8912243]
[1763308824284,8.8912243,137.66,137.61,8.8912243]
[1763308824593,0.68,137.65,137.61,16.15803553]
[1763308824783,9.5712243,137.65,137.6,8.8912243]
[1763308824977,0.68,137.65,137.61,8.8912243]
[1763308825420,8.8912243,137.68,137.64,8.8912243]
[1763308825636,0.68,137.67,137.63,8.8912243]
[1763308825917,9.5712243,137.67,137.62,8.8912243]
[1763308826215,7.46269487,137.69,137.65,8.8912243]
[1763308826216,9.7712243,137.69,137.65,8.8912243]
[1763308826426,16.35391885,137.69,137.59,48.08909518]
[1763308826636,9.5712243,137.68,137.64,7.26532984]
[1763308826915,8.8912243,137.66,137.61,8.8912243]
[1763308827115,0.68,137.67,137.62,8.8912243]
[1763308827327,9.5712243,137.66,137.61,8.8912243]
[1763308827501,9.5712243,137.66,137.59,7.26787727]
[1763308827502,0.68,137.66,137.59,7.26787727]
[1763308827707,0.68,137.65,137.6,8.8912243]
[1763308828010,0.68,137.65,137.61,8.8912243]
[1763308828219,9.5712243,137.65,137.6,8.8912243]
[1763308828393,8.8912243,137.63,137.58,8.8912243]
[1763308828729,0.68,137.65,137.53,7.27114084]
[1763308828730,9.5712243,137.64,137.59,16.15919435]
[1763308829094,0.68,137.63,137.59,16.15919435]
[1763308829290,18.15804764,137.68,137.59,16.15919435]
[1763308829291,40.80696245,137.7,137.61,8.8912243]
[1763308829639,9.5712243,137.67,137.62,8.8912243]
[1763308829795,0.2,137.69,137.66,8.8912243]
[1763308830202,0.68,137.68,137.59,48.08909518]
[1763308830505,8.8912243,137.67,137.63,8.8912243]
[1763308831000,0.68,137.66,137.61,8.8912243]
[1763308831327,9.7712243,137.69,137.64,8.8912243]
[1763308831629,9.7712243,137.69,137.65,8.8912243]
[1763308831835,0.88,137.69,137.65,8.8912243]
[1763308831997,0.68,137.68,137.57,22.6512]
[1763308832196,0.68,137.68,137.65,8.8912243]
[1763308832693,0.2,137.69,137.66,16.15499709]
[1763308832896,0.2,137.69,137.66,8.8912243]
[1763308833091,0.2,137.69,137.68,22.6512]
[1763308833092,1e-08,137.69,137.68,22.6512]
[1763308833297,1e-08,137.69,137.68,31.5424243]
[1763308833532,1e-08,137.69,137.65,25.42668981]
[1763308833712,1e-08,137.69,137.66,8.8912243]
[1763308833918,1e-08,137.69,137.65,25.42668981]
[1763308833919,1e-08,137.69,137.68,8.8912243]
[1763308834711,1e-08,137.69,137.68,29.91441905]
[1763308834924,1e-08,137.69,137.68,22.6512]
[1763308835230,1e-08,137.69,137.68,40.11469874]
[1763308835399,1e-08,137.69,137.68,10.20027969]
[1763308835802,0.68000001,137.69,137.6,10.20027969]
[1763308836106,10.20027969,137.68,137.64,10.20027969]
[1763308836300,0.68,137.67,137.63,10.20027969]
[1763308836519,0.68,137.67,137.53,1.99999999]
[1763308836520,10.20027969,137.65,137.6,10.20027969]
[1763308836908,0.68,137.67,137.64,10.20027969]
[1763308837703,0.68,137.67,137.63,10.20027969]
[1763308837901,0.68,137.67,137.59,25.43789518]
[1763308837902,10.20027969,137.66,137.59,25.43789518]
[1763308838215,0.68,137.65,137.59,25.43789518]
[1763308838417,0.68,137.65,137.61,10.20027969]
[1763308838606,0.68,137.65,137.58,10.20027969]
[1763308838607,10.20027969,137.63,137.58,10.20027969]
[1763308838810,10.03108618,137.61,137.58,7.2683861]
[1763308839037,5.35968447,137.64,137.58,17.29947228]
[1763308839344,0.68,137.64,137.59,10.03108618]
[1763308839630,0.68,137.63,137.59,10.03108618]
[1763308839828,0.68,137.63,137.58,25.43963192]
[1763308840039,0.68,137.63,137.6,10.03108618]
[1763308840202,10.03108618,137.66,137.61,10.03108618]
[1763308840402,10.03108618,137.66,137.62,10.03108618]
[1763308840403,0.68,137.66,137.62,10.03108618]
[1763308840608,0.68,137.66,137.58,25.43963192]
[1763308840812,0.68,137.66,137.63,17.29660671]
[1763308841024,0.68,137.66,137.56,22.6512]
[1763308841025,10.03108618,137.65,137.6,10.03108618]
[1763308841215,10.03108618,137.65,137.52,46.24539952]
[1763308841216,10.03108618,137.62,137.52,36.45657183]
[1763308841417,10.71108618,137.64,137.59,10.03108618]
[1763308841623,10.03108618,137.63,137.58,10.03108618]
[1763308841830,0.68,137.63,137.58,10.03108618]
[1763308842022,4.68815589,137.65,137.54,18.17620543]
[1763308842023,10.03108618,137.61,137.54,18.17620543]
[1763308842230,10.03108618,137.6,137.56,10.03108618]
[1763308842433,10.03108618,137.6,137.54,18.17620543]
[1763308842434,10.03108618,137.6,137.55,10.03108618]
[1763308842737,10.03108618,137.6,137.54,18.17620543]
[1763308842738,10.03108618,137.58,137.53,17.30222702]
[1763308842937,10.03108618,137.58,137.52,0.1]
[1763308842938,10.03108618,137.54,137.52,0.1]
[1763308843126,0.68,137.53,137.52,0.1]
[1763308844120,10.03108618,137.58,137.52,0.1]
[1763308844324,10.03108618,137.54,137.52,0.1]
[1763308844518,10.03108618,137.53,137.41,0.11]
[1763308844839,10.03108618,137.47,137.42,10.03108618]
[1763308845011,10.03108618,137.47,137.38,18.19769981]
[1763308845012,50.62281996,137.5,137.4,10.03108618]
[1763308845213,10.03108618,137.41,137.29,6.07940175]
[1763308845452,10.03108618,137.36,137.32,0.04]
[1763308845824,0.72,137.35,137.29,22.6512]
[1763308846138,0.72,137.42,137.34,10.03108618]
[1763308846339,10.03108618,137.4,137.3,0.11]
[1763308846523,0.72,137.42,137.22,2.72875673]
[1763308846524,10.03108618,137.38,137.27,0.11]
[1763308846725,0.72,137.41,137.28,7.28438228]
[1763308847036,0.72,137.41,137.29,0.11]
[1763308847230,0.72,137.41,137.29,9.89882769]
[1763308847438,0.72,137.41,137.31,22.6512]
[1763308847739,0.72,137.41,137.32,22.6512]
[1763308847940,0.72,137.41,137.38,10.03108618]
[1763308848238,0.72,137.41,137.32,22.6512]
[1763308848744,10.03108618,137.38,137.33,10.03108618]
[1763308849039,0.72,137.41,137.34,10.03108618]
[1763308849244,18.18970283,137.45,137.32,7.28212315]
[1763308849245,0.72,137.4,137.32,25.48777418]
[1763308849454,51.99999999,137.49,137.33,0.11]
[1763308849455,1.99999999,137.49,137.33,0.11]
[1763308849741,1.99999999,137.49,137.33,22.7612]
[1763308849742,10.03108618,137.43,137.33,22.7612]
[1763308849941,10.03108618,137.43,137.39,10.03108618]
[1763308850248,0.72,137.44,137.36,22.6512]
[1763308850422,10.75108618,137.44,137.35,22.6512]
[1763308850623,10.75108618,137.44,137.39,10.03108618]
[1763308850816,9.78882769,137.49,137.31,0.11]
[1763308850817,10.03108618,137.42,137.31,0.11]
[1763308851021,10.03108618,137.41,137.36,10.03108618]
[1763308851326,0.72,137.4,137.37,10.03108618]
[1763308851742,0.72,137.4,137.33,18.20432534]
[1763308851743,10.75108618,137.4,137.36,10.03108618]
[1763308851914,10.75108618,137.4,137.33,18.20432534]
[1763308851915,0.72,137.4,137.33,18.20432534]
[1763308852116,0.72,137.4,137.36,10.03108618]
[1763308852646,0.72,137.4,137.32,7.28226041]
[1763308852647,10.03108618,137.37,137.32,7.28226041]
[1763308852820,10.03108618,137.37,137.28,36.42087097]
[1763308852821,35.26375308,137.39,137.25,0.11]
[1763308853021,35.26375308,137.39,137.3,10.03108618]
[1763308853022,35.98375308,137.39,137.3,10.03108618]
[1763308853234,0.72,137.38,137.26,7.28544368]
[1763308853439,10.03108618,137.33,137.26,7.28544368]
[1763308853643,10.03108618,137.32,137.26,7.28544368]
[1763308853950,10.03108618,137.32,137.2,10.10408618]
[1763308853951,9.78882769,137.33,137.23,10.03108618]
[1763308854254,10.03108618,137.31,137.2,35.72426059]
[1763308854542,0.72,137.34,137.2,35.72426059]
[1763308854543,10.03108618,137.29,137.25,10.03108618]
[1763308854845,10.03108618,137.29,137.23,10.03108618]
[1763308854846,10.03108618,137.28,137.23,10.03108618]
[1763308855054,0.72,137.28,137.25,10.03108618]
[1763308855223,0.72,137.27,137.24,10.03108618]
[1763308855646,0.72,137.31,137.26,10.03108618]
[1763308855958,38.39275055,137.39,137.04,5.80750587]
[1763308855959,9.78882769,137.26,137.04,5.80750587]
[1763308856142,9.78882769,137.26,137.03,36.82708356]
[1763308856143,9.78882769,137.26,137.13,0.7]
[1763308856450,10.03108618,137.34,137.11,0.7]
[1763308856451,10.03108618,137.18,137.11,0.7]
[1763308856676,10.03108618,137.22,137.17,10.03108618]
[1763308856973,0.72,137.25,137.16,25.51764362]
[1763308856974,10.03108618,137.23,137.16,25.51764362]
[1763308857177,0.72,137.29,137.16,25.51764362]
[1763308857385,10.03108618,137.26,137.17,0.7]
[1763308857675,0.72,137.28,137.2,10.03108618]
[1763308857846,10.03108618,137.25,137.2,10.03108618]
[1763308858045,0.72,137.28,137.17,22.6512]
[1763308858244,10.75108618,137.28,137.21,0.7]
[1763308858478,0.72,137.28,137.23,10.03108618]
[1763308858679,10.03108618,137.27,137.2,0.7]
[1763308858848,10.03108618,137.24,137.17,0.7]
[1763308859174,0.72,137.28,137.22,10.03108618]
[1763308859480,0.72,137.28,137.23,10.03108618]
[1763308859646,0.72,137.28,137.22,10.03108618]
[1763308859844,10.03108618,137.27,137.22,10.03108618]
[1763308860045,10.03108618,137.27,137.19,0.7]
[1763308860046,10.03108618,137.25,137.2,10.03108618]
[1763308860256,38.40766064,137.34,137.19,0.7]
[1763308860257,0.72,137.32,137.24,10.03108618]
[1763308860456,10.03108618,137.29,137.24,10.03108618]
[1763308860786,0.72,137.32,137.26,10.03108618]
[1763308861078,29.93189295,137.35,137.3,10.03108618]
[1763308861079,10.75108618,137.35,137.3,10.03108618]
[1763308861294,10.03108618,137.31,137.21,23.3512]
[1763308861583,0.72,137.34,137.1,0.7]
[1763308861584,10.03108618,137.22,137.1,0.7]
[1763308861745,10.03108618,137.17,137.12,10.03108618]
[1763308862079,10.75108618,137.19,137.1,0.7]
[1763308862289,10.03108618,137.15,137.06,0.7]
[1763308862447,10.03108618,137.15,137.03,36.82708356]
[1763308862448,9.78882769,137.17,137.11,10.03108618]
[1763308862653,9.78882769,137.17,137.03,73.31458904]
[1763308862654,10.03108618,137.15,137.05,0.7]
[1763308862860,7.29079286,137.16,137.14,1.24130464]
[1763308863063,19.81991387,137.15,137.14,1.24130464]
[1763308863347,7.29079286,137.16,137.0,8.29901878]
[1763308863348,10.03108618,137.04,137.0,8.29901878]
[1763308863651,10.03108618,137.02,137.0,1.0]
[1763308863845,10.03108618,137.01,137.0,1.0]
[1763308864075,60.03108618,137.06,137.0,1.0]
[1763308864273,10.03108618,137.01,137.0,0.98]
[1763308864892,7.29494409,137.09,137.0,0.98]
[1763308865052,51.99999999,137.12,137.0,8.97924706]
[1763308865053,10.03108618,137.04,137.0,8.97924706]
[1763308865392,7.29395534,137.1,137.0,0.98]
[1763308865393,32.68228618,137.06,137.0,0.98]
[1763308865593,22.6512,137.04,137.0,0.98]
[1763308865887,10.03108618,137.01,137.0,0.98]
[1763308866061,7.29395534,137.1,137.0,1.68]
[1763308866247,7.29395534,137.1,137.01,0.7]
[1763308866573,10.03108618,137.05,137.0,18.31016533]
[1763308866749,10.03108618,137.03,137.0,0.98]
[1763308867078,10.03108618,137.01,137.0,0.98]
[1763308867249,50.0,137.08,137.0,0.98]
[1763308867448,27.53067327,137.09,137.0,0.98]
[1763308867449,10.03108618,137.01,137.0,0.98]
[1763308868075,10.03108618,137.01,136.9,18.26137157]
[1763308868076,60.03108618,137.01,136.9,10.03108618]
[1763308868299,12.03108617,137.06,136.93,10.03108618]
[1763308868300,10.03108618,136.97,136.93,10.03108618]
[1763308868469,10.03108618,137.02,136.94,0.7]
[1763308868649,22.6512,137.06,136.94,0.7]
[1763308868650,10.03108618,137.04,136.94,0.7]
[1763308868845,10.03108618,137.03,136.99,10.03108618]
[1763308869069,29.947456,137.06,136.95,25.55677254]
[1763308869070,10.03108618,137.02,136.95,25.55677254]
[1763308869255,29.947456,137.06,136.96,10.73108618]
[1763308869256,10.03108618,137.01,136.96,10.73108618]
[1763308869456,22.6512,137.06,136.98,10.03108618]
[1763308869681,10.03108618,137.02,136.97,10.73108618]
[1763308869988,10.03108618,137.04,136.99,10.03108618]
[1763308870195,7.29288214,137.12,136.98,0.7]
[1763308870400,7.29128691,137.15,137.05,10.03108618]
[1763308870686,10.23108618,137.14,137.02,22.6512]
[1763308870850,0.2,137.14,137.11,10.03108618]
[1763308871270,1.99999999,137.25,137.13,10.03108618]
[1763308871271,18.21651446,137.24,137.13,10.03108618]
[1763308871483,10.03108618,137.15,137.12,0.7]
[1763308871722,10.03108618,137.15,137.11,10.03108618]
[1763308871989,10.03108618,137.15,137.01,1.99999999]
[1763308871990,10.03108618,137.12,137.05,10.73108618]
[1763308872277,10.03108618,137.08,137.03,10.03108618]
[1763308872694,10.03108618,137.08,137.04,0.7]
[1763308873198,10.03108618,137.05,137.0,0.7]
[1763308873352,22.8512,137.11,137.03,10.03108618]
[1763308873353,22.6512,137.11,137.03,10.03108618]
[1763308873549,22.6512,137.11,137.0,0.7]
[1763308873550,10.03108618,137.09,137.05,10.03108618]
[1763308873787,10.03108618,137.11,137.0,0.7]
[1763308873957,10.03108618,137.11,137.06,10.03108618]
[1763308874146,10.03108618,137.11,137.07,0.72]
[1763308874350,10.03108618,137.11,136.96,25.55490653]
[1763308874351,0.2,137.1,136.96,25.55490653]
[1763308874660,0.2,137.1,136.97,0.72]
[1763308874661,10.03108618,137.01,136.97,0.72]
[1763308874867,10.03108618,136.98,136.93,10.03108618]
[1763308875206,10.03108618,136.96,136.91,10.75108618]
[1763308875352,48.20070421,136.99,136.87,0.72]
[1763308875582,48.20070421,136.99,136.91,10.03108618]
[1763308875809,10.03108618,136.92,136.87,10.03108618]
[1763308876022,22.6512,136.96,136.86,0.72]
[1763308876180,10.03108618,136.92,136.87,10.03108618]
[1763308876382,0.2,136.98,136.88,30.5697725]
[1763308876609,60.03108618,137.06,136.93,10.03108618]
[1763308876779,60.03108618,137.06,136.89,0.72]
[1763308876780,10.03108618,136.95,136.89,0.72]
[1763308876981,29.94993731,137.01,136.93,10.03108618]
[1763308877194,10.03108618,136.97,136.91,0.72]
[1763308877515,22.6512,137.01,136.93,10.03108618]
[1763308877821,28.27134812,137.06,136.91,26.28417865]
[1763308877822,0.2,137.03,136.91,8.02400774]
[1763308877993,10.03108618,136.99,136.92,0.72]
[1763308878319,10.03108618,136.96,136.92,0.72]
[1763308878524,10.03108618,136.97,136.92,10.75108618]
[1763308878685,22.8512,137.02,136.93,10.03108618]
[1763308878994,0.2,137.05,136.97,10.03108618]
[1763308879312,50.0,137.15,137.02,10.03108618]
[1763308879313,7.29128691,137.15,137.02,10.03108618]
[1763308879521,7.29128691,137.15,137.03,0.72]
[1763308880221,0.2,137.14,137.03,0.72]
[1763308880434,0.2,137.21,137.03,23.3712]
[1763308880638,10.03108618,137.16,137.11,10.03108618]
[1763308880780,7.2875674,137.22,137.1,22.6512]
[1763308880986,50.0,137.27,137.1,22.6512]
[1763308880987,10.03108618,137.23,137.18,10.03108618]
[1763308881185,7.2854768,137.26,137.19,10.03108618]
[1763308881430,10.03108618,137.23,137.12,0.72]
[1763308881588,10.03108618,137.23,137.19,10.03108618]
[1763308881789,25.499086,137.26,137.19,0.72]
[1763308881790,7.2854768,137.26,137.19,0.72]
[1763308882098,10.03108618,137.2,137.06,10.03108618]
[1763308882290,10.03108618,137.17,137.11,0.72]
[1763308882623,77.49908599,137.26,137.15,10.03108618]
[1763308882624,10.03108618,137.19,137.15,10.03108618]
[1763308882798,10.03108618,137.22,137.17,10.03108618]
[1763308883009,10.03108618,137.22,137.17,17.32127264]
[1763308883210,51.99999999,137.29,137.17,17.32127264]
[1763308883211,0.2,137.31,137.19,10.03108618]
[1763308883418,10.03108618,137.26,137.22,10.03108618]
[1763308883621,0.2,137.36,137.25,10.03108618]
[1763308883939,0.2,137.36,137.23,10.03108618]
[1763308883940,25.48234437,137.35,137.23,10.03108618]
[1763308884220,25.48234437,137.35,137.25,10.03108618]
[1763308884221,10.03108618,137.3,137.25,10.03108618]
[1763308884425,25.48234437,137.35,137.25,10.03108618]
[1763308884426,10.03108618,137.29,137.25,10.03108618]
[1763308884624,25.68234437,137.35,137.2,22.6512]
[1763308884625,10.03108618,137.32,137.27,10.03108618]
[1763308884799,10.03108618,137.33,137.28,10.75108618]
[1763308884996,46.51210452,137.48,137.2,32.68228618]
[1763308884997,0.2,137.42,137.31,10.03108618]
[1763308885297,7.27749072,137.41,137.32,10.03108618]
[1763308885618,19.32923896,137.48,137.36,10.03108618]
[1763308885619,0.2,137.46,137.36,10.03108618]
[1763308885930,5.06360832,137.58,137.29,25.49320626]
[1763308885931,0.2,137.49,137.38,10.03108618]
[1763308886226,0.2,137.49,137.39,0.72]
[1763308886523,10.03108618,137.45,137.41,10.03108618]
[1763308886748,0.2,137.49,137.35,0.72]
[1763308886749,10.03108618,137.42,137.35,0.72]
[1763308886934,10.03108618,137.4,137.35,0.72]
[1763308887108,51.99999999,137.5,137.36,10.03108618]
[1763308887292,10.03108618,137.41,137.37,0.72]
[1763308887730,10.03108618,137.41,137.37,10.75108618]
[1763308887933,10.03108618,137.39,137.37,0.72]
[1763308888121,10.03108618,137.38,137.33,0.72]
[1763308888331,10.03108618,137.38,137.23,1.99999999]
[1763308888332,9.78882769,137.42,137.31,10.03108618]
[1763308888630,0.2,137.47,137.34,0.72]
[1763308888808,10.03108618,137.4,137.35,10.03108618]
[1763308889007,10.03108618,137.4,137.34,0.72]
[1763308889008,9.78882769,137.4,137.34,0.72]
[1763308889312,10.03108618,137.36,137.29,18.20931892]
[1763308889625,9.78882769,137.4,137.32,0.72]
[1763308889935,10.03108618,137.35,137.32,0.72]
[1763308890329,0.2,137.46,137.33,10.03108618]
[1763308890501,10.03108618,137.39,137.33,10.03108618]
[1763308890706,10.03108618,137.34,137.31,0.72]
[1763308890902,22.6512,137.35,137.21,0.72]
[1763308891123,50.2,137.44,137.11,50.7293414]
[1763308891124,22.6512,137.39,137.28,10.03108618]
[1763308891301,10.03108618,137.31,137.23,7.28703636]
[1763308891500,10.03108618,137.26,137.24,0.72]
[1763308891732,10.03108618,137.28,137.24,0.72]
[1763308891915,22.6512,137.35,137.24,0.72]
[1763308891916,10.03108618,137.26,137.24,0.72]
[1763308892116,0.2,137.34,137.24,0.72]
[1763308892299,0.2,137.34,137.1,86.46764549]
[1763308892300,10.03108618,137.25,137.06,1.99999999]
[1763308892629,0.2,137.33,137.07,0.72]
[1763308892630,32.68228618,137.2,137.07,0.72]
[1763308892832,22.6512,137.17,137.07,0.72]
[1763308893009,10.03108618,137.1,137.07,0.72]
[1763308893407,10.03108618,137.08,137.07,0.72]
[1763308893634,25.52136501,137.14,137.05,0.72]
[1763308893822,10.03108618,137.06,137.05,0.72]
[1763308894314,10.03108618,137.07,137.05,0.72]
[1763308894518,10.03108618,137.08,137.05,0.72]
[1763308894916,7.48773517,137.22,137.07,8.95966495]
[1763308895146,8.95966495,137.13,137.09,7.29447808]
[1763308895305,8.95966495,137.13,137.1,0.72]
[1763308895505,7.28809853,137.21,137.1,0.72]
[1763308895847,7.28758783,137.22,137.11,8.95966495]
[1763308896015,8.95966495,137.16,137.12,0.72]
[1763308896213,7.28699686,137.24,137.12,9.67966495]
[1763308896523,8.95966495,137.28,137.12,9.67966495]
[1763308896524,8.95966495,137.2,137.15,8.95966495]
[1763308896718,8.95966495,137.28,137.16,8.95966495]
[1763308896719,8.95966495,137.21,137.16,8.95966495]
[1763308896920,9.15966495,137.28,137.13,0.72]
[1763308896921,8.95966495,137.17,137.13,0.72]
[1763308897116,8.95966495,137.18,137.13,9.67966495]
[1763308897319,8.95966495,137.18,137.14,16.25148352]
[1763308897639,8.95966495,137.18,137.14,16.97148352]
[1763308897825,9.78882769,137.22,137.11,16.25305875]
[1763308898135,72.6512,137.26,137.11,16.25305875]
[1763308898136,9.78882769,137.25,137.15,9.67966495]
[1763308898318,7.28495869,137.27,137.17,8.95966495]
[1763308898516,7.28279076,137.31,137.2,8.95966495]
[1763308898717,7.28279076,137.31,137.16,0.72]
[1763308898718,8.95966495,137.26,137.22,8.95966495]
[1763308899034,8.95966495,137.26,137.21,8.95966495]
[1763308899348,8.95966495,137.26,137.22,16.24723235]
[1763308899642,18.40097464,137.36,137.24,8.95966495]
[1763308899821,0.2,137.35,137.23,9.67966495]
[1763308900012,8.95966495,137.24,137.2,8.00854794]
[1763308900220,8.95966495,137.27,137.21,0.72]
[1763308900420,8.95966495,137.29,137.24,8.95966495]
[1763308900618,8.95966495,137.31,137.23,22.6512]
[1763308900913,7.47960981,137.37,137.23,22.6512]
[1763308900914,8.95966495,137.3,137.25,8.95966495]
[1763308901116,8.95966495,137.28,137.24,9.67966495]
[1763308901344,32.64002769,137.36,137.17,11.78882768]
[1763308901345,8.95966495,137.29,137.25,16.96563944]
[1763308901525,8.95966495,137.29,137.25,0.72]
[1763308901721,8.95966495,137.3,137.26,0.72]
[1763308901933,8.95966495,137.3,137.26,9.67966495]
[1763308902133,18.19899853,137.38,137.28,8.95966495]
[1763308902134,8.95966495,137.32,137.28,8.95966495]
[1763308902438,50.0,137.42,137.29,9.67966495]
[1763308902439,16.23820941,137.4,137.29,9.67966495]
[1763308902743,16.23820941,137.4,137.29,0.72]
[1763308902917,8.95966495,137.32,137.3,0.72]
[1763308903116,38.88940941,137.4,137.26,0.72]
[1763308903117,22.6512,137.33,137.26,0.72]
[1763308903428,22.6512,137.33,137.16,31.61086495]
[1763308903429,8.95966495,137.27,137.22,8.0075674]
[1763308903617,8.95966495,137.24,137.19,7.2886369]
[1763308903823,0.2,137.32,137.16,16.2499468]
[1763308903824,18.74849264,137.28,137.16,16.2499468]
[1763308904044,22.6512,137.3,137.18,8.95966495]
[1763308904218,22.6512,137.3,137.08,50.0]
[1763308904219,8.95966495,137.22,137.17,0.7]
[1763308904538,8.95966495,137.2,137.17,0.7]
[1763308904724,8.95966495,137.18,137.17,0.7]
[1763308905042,8.95966495,137.18,137.13,0.7]
[1763308905246,9.78882769,137.22,137.13,0.7]
[1763308905247,8.95966495,137.16,137.13,0.7]
[1763308905448,8.95966495,137.15,137.13,0.7]
[1763308905744,8.95966495,137.15,137.09,7.29445365]
[1763308905745,8.95966495,137.14,137.11,0.7]
[1763308905937,9.78882769,137.18,137.11,0.7]
[1763308906142,8.95966495,137.13,137.11,0.7]
[1763308906460,8.95966495,137.12,137.11,0.7]
[1763308906627,9.78882769,137.18,137.11,0.7]
[1763308906817,8.95966495,137.12,137.11,0.7]
[1763308907020,8.95966495,137.14,137.11,0.7]
[1763308907247,22.6512,137.19,137.11,0.7]
[1763308907526,9.78882769,137.23,137.12,8.95966495]
[1763308907822,8.95966495,137.14,137.11,0.7]
[1763308908043,40.86767135,137.24,137.11,0.7]
[1763308908044,8.95966495,137.16,137.12,0.7]
[1763308908257,8.95966495,137.15,137.12,0.7]
[1763308908421,9.78882769,137.23,137.12,0.7]
[1763308908422,8.95966495,137.16,137.12,0.7]
[1763308908625,8.95966495,137.17,137.12,9.65966495]
[1763308908948,7.48597449,137.25,137.16,8.95966495]
[1763308908949,7.28597449,137.25,137.16,8.95966495]
[1763308909123,8.95966495,137.22,137.18,8.95966495]
[1763308909321,8.95966495,137.22,137.17,0.7]
[1763308909322,8.95966495,137.24,137.19,16.24882596]
[1763308909618,8.95966495,137.24,137.19,25.51206355]
[1763308909825,85.55992913,137.35,137.19,25.51206355]
[1763308909826,50.0,137.37,137.21,8.95966495]
[1763308910029,16.65982862,137.4,137.25,8.95966495]
[1763308910030,8.95966495,137.29,137.25,8.95966495]
[1763308910226,7.28013977,137.36,137.25,8.95966495]
[1763308910227,8.95966495,137.3,137.25,8.95966495]
[1763308910445,8.95966495,137.31,137.27,8.95966495]
[1763308910744,8.95966495,137.29,137.24,9.65966495]
[1763308910949,8.95966495,137.29,137.25,8.95966495]
[1763308911154,8.95966495,137.29,137.23,0.7]
[1763308911155,22.6512,137.34,137.23,0.7]
[1763308911369,8.95966495,137.24,137.19,0.7]
[1763308911524,8.95966495,137.22,137.18,8.95966495]
[1763308911722,22.6512,137.27,137.18,0.7]
[1763308911924,8.95966495,137.2,137.19,0.7]
[1763308912333,8.95966495,137.2,137.15,0.7]
[1763308912552,8.95966495,137.17,137.16,0.7]
[1763308912756,8.95966495,137.17,137.14,0.7]
[1763308912928,8.95966495,137.16,137.14,0.7]
[1763308913335,22.6512,137.24,137.14,9.65966495]
[1763308913665,8.95966495,137.28,137.16,8.95966495]
[1763308913867,8.95966495,137.28,137.14,7.99176056]
[1763308913868,8.95966495,137.22,137.17,8.95966495]
[1763308914038,8.95966495,137.22,137.18,9.65966495]
[1763308914543,8.95966495,137.25,137.2,8.95966495]
[1763308914745,0.2,137.3,137.22,8.95966495]
[1763308914948,8.95966495,137.27,137.23,9.65966495]
[1763308915169,0.2,137.3,137.23,9.65966495]
[1763308915345,8.95966495,137.27,137.23,0.7]
[1763308915754,0.2,137.3,137.23,0.7]
[1763308915938,8.95966495,137.26,137.23,0.7]
[1763308916839,7.48335746,137.3,137.23,0.7]
[1763308916840,8.95966495,137.27,137.23,0.7]
[1763308917233,8.95966495,137.29,137.24,16.24580238]
[1763308917460,9.15966495,137.3,137.26,8.95966495]
[1763308917641,0.2,137.3,137.27,8.95966495]
[1763308917843,0.2,137.3,137.25,0.7]
[1763308918265,0.2,137.3,137.29,8.95966495]
[1763308918762,0.2,137.3,137.29,9.65966495]
[1763308919535,0.2,137.3,137.29,16.94351665]
[1763308919735,0.4,137.43,137.29,35.1531459]
[1763308919940,50.0,137.46,137.36,8.95966495]
[1763308919941,8.95966495,137.41,137.36,8.95966495]
[1763308920133,8.95966495,137.42,137.37,8.95966495]
[1763308920364,8.95966495,137.41,137.37,8.95966495]
[1763308920542,8.95966495,137.43,137.38,9.65966495]
[1763308920745,22.6512,137.44,137.33,0.7]
[1763308920948,0.4,137.46,137.33,0.7]
[1763308920949,8.95966495,137.39,137.33,0.7]
[1763308921161,0.4,137.46,137.33,9.65966495]
[1763308921162,8.95966495,137.37,137.33,9.65966495]
[1763308921361,25.46010037,137.47,137.24,0.7]
[1763308921362,8.95966495,137.34,137.24,0.7]
[1763308921566,8.95966495,137.25,137.2,0.7]